fUST/lending_fUST_20250117
["ID","MTS","AMOUNT","RATE_DAILY","PERIOD"]
[349292079,1737101440688,-500.0,0.00021917,3]
[349292081,1737101440697,-500.0,0.00021917,3]
[349292084,1737101440707,-500.0,0.00021917,3]
[349292086,1737101440717,-272.12502855,0.00021917,3]
[349292087,1737101440726,-500.0,0.00021917,3]
[349292089,1737101440735,-500.0,0.00021917,3]
[349292091,1737101440745,-500.0,0.00021917,3]
[349292093,1737101440754,-500.0,0.00021917,3]
[349292095,1737101440763,-504.71537247,0.00021917,3]
[349292098,1737101440773,-500.0,0.00021917,3]
[349292100,1737101440782,-500.0,0.00021917,3]
[349292101,1737101440791,-500.0,0.00021917,3]
[349292104,1737101440801,-500.0,0.00021917,3]
[349292105,1737101440811,-500.0,0.00021917,3]
[349292107,1737101440820,-500.0,0.00021917,3]
[349292109,1737101440829,-500.0,0.00021917,3]
[349292112,1737101440839,-500.0,0.00021917,3]
[349292114,1737101440848,-500.0,0.00021917,3]
[349292116,1737101440858,-500.0,0.00021917,3]
[349292117,1737101440867,-500.0,0.00021917,3]
[349292119,1737101440877,-500.0,0.00021917,3]
[349292121,1737101440887,-499.0,0.00021917,2]
[349292123,1737101440896,-500.0,0.00021917,3]
[349292125,1737101440905,-500.0,0.00021917,3]
[349292127,1737101440914,-500.0,0.00021917,3]
[349292129,1737101440923,-500.0,0.00021917,3]
[349292131,1737101440932,-500.0,0.00021917,3]
[349292133,1737101440941,-212.58914589,0.00021917,3]
[349292135,1737101440950,-500.0,0.00021917,3]
[349292137,1737101440959,-834.57,0.00021917,3]
[349292139,1737101440969,-500.0,0.00021917,3]
[349292141,1737101440978,-161.55184455,0.00021917,3]
[349292143,1737101440989,-500.0,0.00021917,3]
[349292145,1737101440998,-500.0,0.00021917,3]
[349292148,1737101441008,-500.0,0.00021917,3]
[349292150,1737101441017,-500.0,0.00021917,3]
[349292151,1737101441026,-500.0,0.00021917,3]
[349292153,1737101441036,-500.0,0.00021917,3]
[349292155,1737101441045,-506.83753552,0.00021917,3]
[349292157,1737101441054,-500.0,0.00021917,3]
[349292160,1737101441064,-17378.52,0.00021917,3]
[349292162,1737101441073,-500.0,0.00021917,3]
[349292163,1737101441082,-500.0,0.00021917,3]
[349292165,1737101441092,-566.54467622,0.00021917,3]
[349292168,1737101441101,-500.0,0.00021917,3]
[349292170,1737101441110,-559.02299597,0.00021917,3]
[349292172,1737101441120,-500.0,0.00021917,3]
[349292174,1737101441129,-500.0,0.00021917,3]
[349292176,1737101441139,-500.0,0.00021917,3]
[349292177,1737101441148,-500.0,0.00021917,3]
[349292178,1737101441159,-500.0,0.00021917,3]
[349292179,1737101441168,-500.0,0.00021917,3]
[349292180,1737101441177,-500.0,0.00021917,3]
[349292181,1737101441187,-500.0,0.00021917,3]
[349292183,1737101441197,-500.0,0.00021917,3]
[349292184,1737101441207,-505.88797372,0.00021917,3]
[349292185,1737101441216,-500.0,0.00021917,3]
[349292186,1737101441227,-500.0,0.00021917,3]
[349292187,1737101441237,-500.0,0.00021917,3]
[349292188,1737101441247,-1561.39,0.00021917,3]
[349292189,1737101441256,-504.29965701,0.00021917,3]
[349292190,1737101441266,-500.0,0.00021917,3]
[349292191,1737101441276,-500.0,0.00021917,3]
[349292192,1737101441290,-500.0,0.00021917,3]
[349292193,1737101441299,-500.0,0.00021917,3]
[349292194,1737101441309,-500.0,0.00021917,3]
[349292195,1737101441319,-500.0,0.00021917,3]
[349292196,1737101441329,-181.61932585,0.00021917,3]
[349292197,1737101441339,-1021.02,0.00021917,3]
[349292198,1737101441348,-500.0,0.00021917,3]
[349292199,1737101441360,-450.97850572,0.00021917,3]
[349292200,1737101441369,-500.0,0.00021917,3]
[349292201,1737101441379,-500.0,0.00021917,3]
[349292202,1737101441388,-500.0,0.00021917,3]
[349292203,1737101441397,-500.0,0.00021917,3]
[349292204,1737101441408,-500.0,0.00021917,3]
[349292205,1737101441419,-500.0,0.00021917,3]
[349292206,1737101441428,-14393.76,0.00021917,3]
[349292207,1737101441438,-500.0,0.00021917,3]
[349292208,1737101441448,-500.0,0.00021917,3]
[349292209,1737101441457,-500.0,0.00021917,3]
[349292210,1737101441465,-500.0,0.00021917,3]
[349292212,1737101441475,-500.0,0.00021917,3]
[349292214,1737101441485,-500.0,0.00021917,3]
[349292215,1737101441494,-500.0,0.00021917,3]
[349292217,1737101441504,-500.0,0.00021917,3]
[349292219,1737101441513,-500.0,0.00021917,3]
[349292221,1737101441523,-500.0,0.00021917,3]
[349292223,1737101441532,-500.0,0.00021917,3]
[349292225,1737101441541,-500.0,0.00021917,3]
[349292227,1737101441550,-500.0,0.00021917,3]
[349292229,1737101441560,-500.0,0.00021917,3]
[349292231,1737101441569,-500.0,0.00021917,3]
[349292233,1737101441578,-500.0,0.00021917,3]
[349292235,1737101441587,-508.88,0.00021917,3]
[349292237,1737101441596,-500.0,0.00021917,3]
[349292239,1737101441606,-506.65043996,0.00021917,3]
[349292241,1737101441615,-500.0,0.00021917,3]
[349292242,1737101441624,-500.0,0.00021917,3]
[349292244,1737101441633,-500.0,0.00021917,3]
[349292246,1737101441642,-500.0,0.00021917,3]
[349292248,1737101441652,-500.0,0.00021917,3]
[349292250,1737101441661,-506.11370065,0.00021917,3]
[349292252,1737101441670,-500.0,0.00021917,3]
[349292254,1737101441680,-503.40880925,0.00021917,3]
[349292256,1737101441689,-500.0,0.00021917,3]
[349292258,1737101441698,-500.0,0.00021917,3]
[349292260,1737101441707,-500.0,0.00021917,3]
[349292262,1737101441716,-502.18297636,0.00021917,3]
[349292264,1737101441725,-500.0,0.00021917,3]
[349292266,1737101441734,-500.0,0.00021917,3]
[349292268,1737101441743,-505.61422913,0.00021917,3]
[349292270,1737101441752,-500.0,0.00021917,3]
[349292272,1737101441761,-500.0,0.00021917,3]
[349292274,1737101441770,-507.87347469,0.00021917,3]
[349292275,1737101441780,-500.0,0.00021917,3]
[349292277,1737101441789,-500.0,0.00021917,3]
[349292279,1737101441798,-1412.08,0.00021917,3]
[349292281,1737101441807,-590.22,0.00021917,3]
[349292283,1737101441816,-500.0,0.00021917,3]
[349292285,1737101441826,-500.0,0.00021917,3]
[349292287,1737101441835,-500.0,0.00021917,3]
[349292289,1737101441844,-500.0,0.00021917,3]
[349292291,1737101441853,-500.0,0.00021917,3]
[349292293,1737101441862,-500.0,0.00021917,3]
[349292295,1737101441871,-500.0,0.00021917,3]
[349292297,1737101441881,-500.0,0.00021917,3]
[349292299,1737101441890,-500.0,0.00021917,3]
[349292301,1737101441899,-500.0,0.00021917,3]
[349292303,1737101441909,-500.0,0.00021917,3]
[349292305,1737101441919,-500.0,0.00021917,3]
[349292307,1737101441928,-3854.5,0.00021917,3]
[349292309,1737101441937,-500.0,0.00021917,3]
[349292322,1737101442059,-500.0,0.00021917,3]
[349292324,1737101442069,-500.0,0.00021917,3]
[349292326,1737101442079,-500.0,0.00021917,3]
[349292327,1737101442088,-1014.36,0.00021917,3]
[349292329,1737101442098,-500.0,0.00021917,3]
[349292331,1737101442107,-500.0,0.00021917,3]
[349292333,1737101442117,-500.0,0.00021917,3]
[349292335,1737101442126,-500.0,0.00021917,3]
[349292337,1737101442135,-443.42631474,0.00021917,3]
[349292339,1737101442144,-500.0,0.00021917,3]
[349292341,1737101442153,-500.0,0.00021917,3]
[349292343,1737101442163,-500.0,0.00021917,3]
[349292345,1737101442172,-509.03759588,0.00021917,3]
[349292347,1737101442181,-500.0,0.00021917,3]
[349292349,1737101442190,-510.90131772,0.00021917,3]
[349292351,1737101442199,-500.0,0.00021917,3]
[349292353,1737101442208,-500.0,0.00021917,3]
[349292355,1737101442217,-500.0,0.00021917,3]
[349292357,1737101442226,-507.06573294,0.00021917,3]
[349292359,1737101442235,-526.13917003,0.00021917,3]
[349292361,1737101442244,-500.0,0.00021917,3]
[349292363,1737101442253,-500.0,0.00021917,3]
[349292364,1737101442262,-500.0,0.00021917,3]
[349292366,1737101442271,-500.0,0.00021917,3]
[349292368,1737101442284,-500.0,0.00021917,3]
[349292370,1737101442293,-500.62208192,0.00021917,3]
[349292372,1737101442303,-500.0,0.00021917,3]
[349292374,1737101442313,-500.0,0.00021917,3]
[349292376,1737101442323,-4907.47,0.00021917,3]
[349292378,1737101442333,-500.0,0.00021917,3]
[349292380,1737101442342,-5287.59,0.00021917,3]
[349292382,1737101442352,-500.0,0.00021917,3]
[349292384,1737101442362,-500.0,0.00021917,3]
[349292386,1737101442372,-500.0,0.00021917,3]
[349292387,1737101442381,-500.0,0.00021917,3]
[349292389,1737101442390,-500.0,0.00021917,3]
[349292391,1737101442399,-500.0,0.00021917,3]
[349292393,1737101442410,-500.0,0.00021917,3]
[349292395,1737101442419,-500.0,0.00021917,3]
[349292396,1737101442428,-508.33936572,0.00021917,3]
[349292398,1737101442438,-501.59703703,0.00021917,3]
[349292400,1737101442448,-500.0,0.00021917,3]
[349292402,1737101442457,-514.74901886,0.00021917,3]
[349292404,1737101442466,-500.0,0.00021917,3]
[349292406,1737101442475,-500.0,0.00021917,3]
[349292408,1737101442485,-500.0,0.00021917,3]
[349292409,1737101442494,-500.0,0.00021917,3]
[349292411,1737101442503,-500.0,0.00021917,3]
[349292413,1737101442512,-500.0,0.00021917,3]
[349292415,1737101442521,-10254.85,0.00021917,3]
[349292417,1737101442531,-500.0,0.00021917,3]
[349292418,1737101442540,-500.0,0.00021917,3]
[349292420,1737101442550,-500.0,0.00021917,3]
[349292422,1737101442559,-1330.37,0.00021917,3]
[349292424,1737101442568,-500.0,0.00021917,3]
[349292426,1737101442578,-2909.15,0.00021917,3]
[349292428,1737101442587,-528.91316248,0.00021917,3]
[349292429,1737101442596,-500.0,0.00021917,3]
[349292431,1737101442606,-500.0,0.00021917,3]
[349292433,1737101442615,-500.0,0.00021917,3]
[349292435,1737101442625,-245.43530102,0.00021917,3]
[349292437,1737101442634,-500.0,0.00021917,3]
[349292439,1737101442643,-500.0,0.00021917,3]
[349292441,1737101442653,-466.12979985,0.00021917,3]
[349292442,1737101442663,-500.0,0.00021917,3]
[349292444,1737101442672,-500.0,0.00021917,3]
[349292446,1737101442681,-500.0,0.00021917,3]
[349292448,1737101442690,-500.0,0.00021917,3]
[349292450,1737101442699,-500.0,0.00021917,3]
[349292451,1737101442709,-838.79,0.00021917,3]
[349292453,1737101442718,-500.0,0.00021917,3]
[349292455,1737101442728,-520.52893368,0.00021917,3]
[349292457,1737101442736,-500.0,0.00021917,3]
[349292459,1737101442746,-500.0,0.00021917,3]
[349292460,1737101442755,-500.0,0.00021917,3]
[349292462,1737101442764,-500.0,0.00021917,3]
[349292464,1737101442773,-500.0,0.00021917,3]
[349292466,1737101442782,-500.0,0.00021917,3]
[349292468,1737101442792,-500.0,0.00021917,3]
[349292470,1737101442801,-500.0,0.00021917,3]
[349292471,1737101442810,-153.0,0.00021966,2]
[349292473,1737101442819,-153.0,0.00021966,2]
[349292475,1737101442828,-153.0,0.00021966,2]
[349292477,1737101442837,-153.0,0.00021966,2]
[349292479,1737101442846,-153.0,0.00021969,2]
[349292480,1737101442855,-153.0,0.00021969,2]
[349292482,1737101442864,-153.0,0.00021969,2]
[349292484,1737101442873,-1618.0439533,0.00021969,3]
[349292486,1737101442883,-500.0,0.00021973,2]
[349292488,1737101442891,-373.71658212,0.00021994,2]
[349292489,1737101442900,-500.0,0.00021998,9]
[349292491,1737101442911,-160.0,0.00022024,4]
[349292493,1737101442921,-1618.0439533,0.00022038,3]
[349292495,1737101442930,-500.0,0.00022054,3]
[349292497,1737101442940,-500.0,0.00022054,3]
[349292499,1737101442950,-500.0,0.00022054,3]
[349292501,1737101442959,-500.0,0.00022054,3]
[349292502,1737101442968,-500.0,0.00022054,3]
[349292504,1737101442977,-576.76906302,0.00022054,3]
[349292506,1737101442986,-516.23,0.00022054,3]
[349292508,1737101442996,-500.0,0.00022054,3]
[349292510,1737101443005,-500.0,0.00022054,3]
[349292512,1737101443015,-504.74543994,0.00022054,3]
[349292514,1737101443024,-500.0,0.00022054,3]
[349292515,1737101443034,-500.0,0.00022054,3]
[349292517,1737101443044,-212.90149188,0.00022054,3]
[349292519,1737101443054,-500.0,0.00022054,3]
[349292521,1737101443064,-503.60362417,0.00022054,3]
[349292522,1737101443073,-500.00000002,0.00022054,3]
[349292523,1737101443083,-500.0,0.00022054,3]
[349292524,1737101443092,-500.0,0.00022054,3]
[349292525,1737101443101,-500.0,0.00022054,3]
[349292526,1737101443111,-504.49697437,0.00022054,3]
[349292527,1737101443121,-324.95457321,0.00022054,3]
[349292528,1737101443131,-500.0,0.00022054,3]
[349292530,1737101443141,-500.0,0.00022054,3]
[349292533,1737101443150,-500.0,0.00022054,3]
[349292536,1737101443161,-500.0,0.00022054,3]
[349292539,1737101443170,-500.0,0.00022054,3]
[349292542,1737101443180,-500.0,0.00022054,3]
[349292546,1737101443189,-500.0,0.00022054,3]
[349292549,1737101443199,-2472.22,0.00022054,3]
[349292550,1737101443208,-500.0,0.00022054,3]
[349292554,1737101443217,-500.0,0.00022054,3]
[349292558,1737101443226,-500.0,0.00022054,3]
[349292562,1737101443236,-516.46677407,0.00022054,3]
[349292566,1737101443245,-500.0,0.00022054,3]
[349292570,1737101443255,-500.0,0.00022054,3]
[349292574,1737101443264,-500.0,0.00022054,3]
[349292579,1737101443274,-589.04,0.00022054,3]
[349292586,1737101443288,-500.0,0.00022054,3]
[349292592,1737101443297,-2477.5,0.00022054,3]
[349292596,1737101443307,-325.84,0.00022054,3]
[349292600,1737101443319,-500.0,0.00022054,3]
[349292604,1737101443328,-500.0,0.00022054,3]
[349292608,1737101443338,-500.0,0.00022054,3]
[349292610,1737101443348,-500.0,0.00022054,2]
[349292612,1737101443359,-500.0,0.00022054,3]
[349292614,1737101443368,-424.71215779,0.00022054,3]
[349292616,1737101443377,-500.0,0.00022054,3]
[349292617,1737101443387,-500.0,0.00022054,3]
[349292619,1737101443396,-500.0,0.00022054,3]
[349292621,1737101443405,-517.6667592,0.00022054,3]
[349292623,1737101443414,-13159.47,0.00022054,3]
[349292625,1737101443423,-500.0,0.00022054,3]
[349292627,1737101443433,-500.0,0.00022054,3]
[349292628,1737101443442,-500.0,0.00022054,3]
[349292630,1737101443451,-500.0,0.00022054,3]
[349292632,1737101443460,-500.0,0.00022054,3]
[349292634,1737101443469,-1455.27,0.00022054,3]
[349292636,1737101443478,-485.76629156,0.00022054,3]
[349292638,1737101443489,-500.0,0.00022054,3]
[349292639,1737101443498,-500.0,0.00022054,3]
[349292641,1737101443508,-500.0,0.00022054,3]
[349292643,1737101443517,-653.03,0.00022054,2]
[349292645,1737101443527,-507.6318727,0.00022054,3]
[349292647,1737101443536,-467.98774176,0.00022054,3]
[349292649,1737101443545,-500.0,0.00022054,3]
[349292651,1737101443555,-500.0,0.00022054,3]
[349292652,1737101443564,-500.0,0.00022054,3]
[349292654,1737101443574,-500.0,0.00022054,3]
[349292656,1737101443583,-500.0,0.00022054,3]
[349292658,1737101443593,-834.57,0.00022054,3]
[349292660,1737101443602,-17378.52,0.00022054,3]
[349292662,1737101443612,-500.0,0.00022054,3]
[349292664,1737101443622,-500.0,0.00022054,3]
[349292666,1737101443631,-500.0,0.00022054,3]
[349292668,1737101443640,-500.0,0.00022054,3]
[349292670,1737101443649,-582.4827558,0.00022054,3]
[349292672,1737101443660,-500.0,0.00022054,3]
[349292673,1737101443670,-1561.39,0.00022054,3]
[349292675,1737101443679,-500.0,0.00022054,3]
[349292677,1737101443688,-1021.02,0.00022054,3]
[349292679,1737101443698,-500.0,0.00022054,3]
[349292681,1737101443707,-14393.76,0.00022054,3]
[349292683,1737101443716,-500.0,0.00022054,3]
[349292686,1737101443726,-500.0,0.00022054,3]
[349292688,1737101443735,-500.0,0.00022054,3]
[349292690,1737101443744,-500.0,0.00022054,3]
[349292692,1737101443753,-500.0,0.00022054,3]
[349292694,1737101443762,-1412.08,0.00022054,3]
[349292696,1737101443771,-590.22,0.00022054,3]
[349292698,1737101443780,-500.0,0.00022054,3]
[349292700,1737101443790,-500.0,0.00022054,3]
[349292702,1737101443799,-500.0,0.00022054,3]
[349292704,1737101443809,-427.94319134,0.00022054,3]
[349292705,1737101443819,-500.0,0.00022054,3]
[349292707,1737101443829,-500.0,0.00022054,3]
[349292709,1737101443839,-500.0,0.00022054,3]
[349292711,1737101443848,-500.0,0.00022054,3]
[349292713,1737101443857,-3854.5,0.00022054,3]
[349292715,1737101443867,-500.0,0.00022054,3]
[349292717,1737101443876,-1014.36,0.00022054,3]
[349292719,1737101443885,-500.0,0.00022054,3]
[349292721,1737101443894,-500.0,0.00022054,3]
[349292722,1737101443903,-500.0,0.00022054,3]
[349292724,1737101443912,-500.0,0.00022054,3]
[349292726,1737101443922,-500.0,0.00022054,3]
[349292728,1737101443931,-220.88266284,0.00022054,3]
[349292730,1737101443940,-500.0,0.00022054,3]
[349292732,1737101443950,-180.11,0.00022054,3]
[349292733,1737101443959,-500.0,0.00022054,3]
[349292735,1737101443969,-511.56,0.00022054,3]
[349292737,1737101443978,-500.0,0.00022054,3]
[349292739,1737101443987,-4907.47,0.00022054,3]
[349292741,1737101443997,-5287.59,0.00022054,3]
[349292743,1737101444006,-500.0,0.00022054,3]
[349292745,1737101444016,-500.0,0.00022054,3]
[349292747,1737101444025,-500.0,0.00022054,3]
[349292749,1737101444034,-500.0,0.00022054,3]
[349292751,1737101444044,-500.0,0.00022054,3]
[349292753,1737101444053,-500.0,0.00022054,3]
[349292755,1737101444063,-500.0,0.00022054,3]
[349292757,1737101444072,-10254.85,0.00022054,3]
[349292759,1737101444081,-500.0,0.00022054,3]
[349292761,1737101444091,-500.0,0.00022054,3]
[349292763,1737101444101,-500.0,0.00022054,3]
[349292765,1737101444110,-1330.37,0.00022054,3]
[349292767,1737101444118,-2909.15,0.00022054,3]
[349292769,1737101444127,-402.12052441,0.00022054,3]
[349292771,1737101444136,-500.0,0.00022054,3]
[349292773,1737101444146,-500.0,0.00022054,3]
[349292775,1737101444155,-500.0,0.00022054,3]
[349292777,1737101444165,-500.0,0.00022054,3]
[349292779,1737101444174,-500.0,0.00022054,3]
[349292781,1737101444183,-500.0,0.00022054,3]
[349292783,1737101444193,-500.0,0.00022054,3]
[349292785,1737101444202,-838.79,0.00022054,3]
[349292787,1737101444212,-500.0,0.00022054,3]
[349292789,1737101444221,-203.27517074,0.00022054,3]
[349292791,1737101444230,-168.78,0.00022054,3]
[349292793,1737101444239,-502.61819718,0.00022073,2]
[349292795,1737101444249,-500.0,0.00022073,2]
[349292797,1737101444258,-161.39199651,0.00022073,2]
[349292799,1737101444267,-500.0,0.00022073,2]
[349292801,1737101444280,-501.79034709,0.00022073,2]
[349292803,1737101444290,-501.08370478,0.00022073,2]
[349292805,1737101444299,-501.05332894,0.00022073,2]
[349292807,1737101444308,-249.71822772,0.00022073,2]
[349292809,1737101444319,-163.85700788,0.00022073,2]
[349292811,1737101444328,-500.0,0.00022073,2]
[349292813,1737101444338,-500.0,0.00022073,2]
[349292815,1737101444347,-151.0,0.00022096,6]
[349292817,1737101444359,-420.0,0.00022106,2]
[349292819,1737101444368,-1618.0439533,0.00022107,3]
[349292821,1737101444377,-1618.0439533,0.00022176,3]
[349292823,1737101444386,-500.0,0.0002219,2]
[349292825,1737101444395,-325.62239051,0.0002219,2]
[349292827,1737101444405,-500.0,0.0002219,2]
[349292829,1737101444414,-500.0,0.0002219,2]
[349292831,1737101444423,-170.01717206,0.0002219,2]
[349292832,1737101444433,-500.0,0.00022191,3]
[349292833,1737101444442,-505.248885,0.00022191,3]
[349292834,1737101444452,-500.0,0.00022191,3]
[349292835,1737101444461,-500.0,0.00022191,3]
[349292836,1737101444470,-488.50579645,0.00022191,3]
[349292837,1737101444480,-509.20761583,0.00022191,3]
[349292838,1737101444490,-500.0,0.00022191,3]
[349292839,1737101444499,-500.0,0.00022191,3]
[349292840,1737101444509,-156.39527006,0.00022191,3]
[349292841,1737101444518,-500.0,0.00022191,3]
[349292842,1737101444527,-2472.22,0.00022191,3]
[349292843,1737101444537,-500.0,0.00022191,3]
[349292844,1737101444546,-500.0,0.00022191,3]
[349292845,1737101444556,-500.0,0.00022191,3]
[349292846,1737101444566,-500.0,0.00022191,3]
[349292847,1737101444575,-500.0,0.00022191,3]
[349292848,1737101444584,-500.0,0.00022191,3]
[349292849,1737101444594,-500.0,0.00022191,3]
[349292850,1737101444603,-2477.5,0.00022191,3]
[349292851,1737101444612,-500.0,0.00022191,3]
[349292852,1737101444622,-500.0,0.00022191,3]
[349292853,1737101444631,-500.0,0.00022191,2]
[349292854,1737101444640,-500.0,0.00022191,3]
[349292855,1737101444649,-500.0,0.00022191,3]
[349292856,1737101444659,-307.74,0.00022191,3]
[349292858,1737101444668,-501.28712797,0.00022191,3]
[349292860,1737101444677,-13159.47,0.00022191,3]
[349292861,1737101444687,-505.97691193,0.00022191,3]
[349292863,1737101444696,-500.0,0.00022191,3]
[349292865,1737101444706,-500.0,0.00022191,3]
[349292867,1737101444715,-500.0,0.00022191,3]
[349292869,1737101444724,-500.0,0.00022191,3]
[349292871,1737101444733,-1455.27,0.00022191,3]
[349292873,1737101444742,-500.0,0.00022191,3]
[349292875,1737101444751,-500.0,0.00022191,3]
[349292877,1737101444760,-653.03,0.00022191,2]
[349292879,1737101444770,-500.0,0.00022191,3]
[349292881,1737101444779,-307.32956606,0.00022191,3]
[349292883,1737101444788,-554.51578941,0.00022191,3]
[349292885,1737101444797,-500.0,0.00022191,3]
[349292887,1737101444806,-500.0,0.00022191,3]
[349292889,1737101444815,-834.57,0.00022191,3]
[349292891,1737101444824,-17378.52,0.00022191,3]
[349292893,1737101444834,-500.0,0.00022191,3]
[349292895,1737101444843,-500.0,0.00022191,3]
[349292897,1737101444852,-500.0,0.00022191,3]
[349292899,1737101444861,-500.0,0.00022191,3]
[349292901,1737101444871,-1561.39,0.00022191,3]
[349292903,1737101444880,-500.0,0.00022191,3]
[349292905,1737101444889,-1021.02,0.00022191,3]
[349292907,1737101444898,-500.0,0.00022191,3]
[349292909,1737101444909,-14393.76,0.00022191,3]
[349292911,1737101444918,-500.0,0.00022191,3]
[349292913,1737101444927,-189.54805724,0.00022191,3]
[349292915,1737101444937,-500.0,0.00022191,3]
[349292917,1737101444947,-500.0,0.00022191,3]
[349292919,1737101444957,-500.0,0.00022191,3]
[349292933,1737101445076,-1412.08,0.00022191,3]
[349292936,1737101445087,-590.22,0.00022191,3]
[349292938,1737101445097,-500.0,0.00022191,3]
[349292940,1737101445107,-500.0,0.00022191,3]
[349292941,1737101445117,-500.0,0.00022191,3]
[349292943,1737101445128,-3854.5,0.00022191,3]
[349292945,1737101445139,-500.0,0.00022191,3]
[349292947,1737101445152,-1014.36,0.00022191,3]
[349292949,1737101445163,-262.28,0.00022191,3]
[349292952,1737101445174,-500.0,0.00022191,3]
[349292954,1737101445184,-500.0,0.00022191,3]
[349292956,1737101445195,-500.0,0.00022191,3]
[349292958,1737101445205,-500.0,0.00022191,3]
[349292960,1737101445215,-500.0,0.00022191,3]
[349292962,1737101445225,-4907.47,0.00022191,3]
[349292964,1737101445234,-5287.59,0.00022191,3]
[349292966,1737101445244,-500.0,0.00022191,3]
[349292968,1737101445254,-500.0,0.00022191,3]
[349292970,1737101445263,-500.0,0.00022191,3]
[349292972,1737101445272,-500.0,0.00022191,3]
[349292974,1737101445286,-500.0,0.00022191,3]
[349292976,1737101445296,-500.0,0.00022191,3]
[349292978,1737101445305,-500.0,0.00022191,3]
[349292980,1737101445315,-10254.85,0.00022191,3]
[349292982,1737101445325,-500.0,0.00022191,3]
[349292984,1737101445335,-500.0,0.00022191,3]
[349292986,1737101445344,-1330.37,0.00022191,3]
[349292988,1737101445354,-2909.15,0.00022191,3]
[349292990,1737101445366,-500.0,0.00022191,3]
[349292992,1737101445376,-500.0,0.00022191,3]
[349292994,1737101445385,-500.0,0.00022191,3]
[349292996,1737101445395,-500.0,0.00022191,3]
[349292998,1737101445405,-500.0,0.00022191,3]
[349293000,1737101445415,-500.0,0.00022191,3]
[349293002,1737101445424,-838.79,0.00022191,3]
[349293004,1737101445433,-500.0,0.00022191,3]
[349293006,1737101445442,-1618.0439533,0.00022245,3]
[349293008,1737101445452,-373.71658212,0.00022253,2]
[349293010,1737101445461,-160.0,0.00022253,5]
[349293012,1737101445470,-1618.0439533,0.00022314,3]
[349293014,1737101445479,-500.0,0.00022328,3]
[349293016,1737101445489,-500.0,0.00022328,3]
[349293018,1737101445498,-500.0,0.00022328,3]
[349293020,1737101445508,-500.0,0.00022328,3]
[349293022,1737101445517,-500.0,0.00022328,3]
[349293024,1737101445527,-2472.22,0.00022328,3]
[349293026,1737101445536,-500.0,0.00022328,3]
[349293028,1737101445545,-500.0,0.00022328,3]
[349293030,1737101445555,-500.0,0.00022328,3]
[349293032,1737101445564,-500.0,0.00022328,3]
[349293034,1737101445573,-500.0,0.00022328,3]
[349293036,1737101445583,-500.0,0.00022328,3]
[349293038,1737101445592,-609.2,0.00022328,3]
[349293040,1737101445602,-2477.5,0.00022328,3]
[349293042,1737101445611,-500.0,0.00022328,3]
[349293044,1737101445620,-500.0,0.00022328,3]
[349293046,1737101445630,-500.0,0.00022328,2]
[349293048,1737101445639,-500.0,0.00022328,3]
[349293050,1737101445649,-500.0,0.00022328,3]